[Event "Titled Tuesday Blitz November 22 Early 2022"]
[White "Szente Varga, Fruzsina"]
[Black "Larina, Maria"]
[WhiteFideId "712264"]
[BlackFideId "24113182"]
[WhiteElo "1994"]
[BlackElo "1848"]
[Result "1/2-1/2"]
[Round "04"]
[TimeControl "180+1"]
[Date "2022.11.23"]
[WhiteClock "0:00:17"]
[BlackClock "0:00:07"]

1. e4 {[%clk 0:03:00]}  c6 {[%clk 0:02:56]} 2. d4 {[%clk 0:03:00]}  d5 {[%clk 0:02:56]} 3. Nc3 {[%clk 0:03:01]}  dxe4 {[%clk 0:02:56]} 4. Nxe4 {[%clk 0:03:02]}  Nf6 {[%clk 0:02:56]} 5. Nxf6+ {[%clk 0:03:02]}  exf6 {[%clk 0:02:57]} 6. c3 {[%clk 0:03:03]}  Bd6 {[%clk 0:02:55]} 7. Bd3 {[%clk 0:03:03]}  O-O {[%clk 0:02:54]} 8. Qc2 {[%clk 0:03:04]}  Re8+ {[%clk 0:02:54]} 9. Ne2 {[%clk 0:03:05]}  h5 {[%clk 0:02:53]} 10. Bd2 {[%clk 0:03:05]}  Nd7 {[%clk 0:02:48]} 11. O-O-O {[%clk 0:03:06]}  Nf8 {[%clk 0:02:48]} 12. Ng3 {[%clk 0:03:04]}  g6 {[%clk 0:02:47]} 13. Bh6 {[%clk 0:03:03]}  f5 {[%clk 0:02:41]} 14. Kb1 {[%clk 0:02:43]}  b5 {[%clk 0:02:29]} 15. f3 {[%clk 0:02:34]}  Be6 {[%clk 0:02:24]} 16. Ne2 {[%clk 0:02:34]}  Qc7 {[%clk 0:02:18]} 17. h3 {[%clk 0:02:28]}  h4 {[%clk 0:02:11]} 18. Bg5 {[%clk 0:02:24]}  Be7 {[%clk 0:01:53]} 19. Qd2 {[%clk 0:02:15]}  a5 {[%clk 0:01:40]} 20. Bxe7 {[%clk 0:02:11]}  Qxe7 {[%clk 0:01:40]} 21. g4 {[%clk 0:02:11]}  hxg3 {[%clk 0:01:38]} 22. Nxg3 {[%clk 0:02:12]}  Qh4 {[%clk 0:01:34]} 23. Rdg1 {[%clk 0:02:11]}  Kh7 {[%clk 0:01:29]} 24. Qg2 {[%clk 0:02:02]}  f4 {[%clk 0:00:48]} 25. Ne4 {[%clk 0:01:59]}  Nd7 {[%clk 0:00:37]} 26. Nd6 {[%clk 0:01:24]}  Re7 {[%clk 0:00:36]} 27. Re1 {[%clk 0:00:27]}  Bxa2+ {[%clk 0:00:30]} 28. Kxa2 {[%clk 0:00:28]}  Rxe1 {[%clk 0:00:29]} 29. Rxe1 {[%clk 0:00:28]}  Qxe1 {[%clk 0:00:28]} 30. Nxf7 {[%clk 0:00:29]}  Qe6+ {[%clk 0:00:27]} 31. Kb1 {[%clk 0:00:25]}  Qxf7 {[%clk 0:00:28]} 32. Qg5 {[%clk 0:00:25]}  Kg7 {[%clk 0:00:26]} 33. h4 {[%clk 0:00:23]}  Qf6 {[%clk 0:00:26]} 34. Qg4 {[%clk 0:00:22]}  Nf8 {[%clk 0:00:26]} 35. h5 {[%clk 0:00:23]}  Re8 {[%clk 0:00:26]} 36. hxg6 {[%clk 0:00:21]}  Nxg6 {[%clk 0:00:27]} 37. Qd7+ {[%clk 0:00:20]}  Re7 {[%clk 0:00:26]} 38. Qc8 {[%clk 0:00:18]}  Qg5 {[%clk 0:00:25]} 39. Ka2 {[%clk 0:00:18]}  Qd5+ {[%clk 0:00:24]} 40. Kb1 {[%clk 0:00:17]}  Re1+ {[%clk 0:00:24]} 41. Kc2 {[%clk 0:00:17]}  Re7 {[%clk 0:00:23]} 42. Qg4 {[%clk 0:00:17]}  Qe6 {[%clk 0:00:22]} 43. Qg5 {[%clk 0:00:17]}  a4 {[%clk 0:00:20]} 44. d5 {[%clk 0:00:15]}  cxd5 {[%clk 0:00:17]} 45. Bxb5 {[%clk 0:00:15]}  a3 {[%clk 0:00:14]} 46. bxa3 {[%clk 0:00:15]}  Qf7 {[%clk 0:00:10]} 47. a4 {[%clk 0:00:15]}  Re5 {[%clk 0:00:10]} 48. Qg4 {[%clk 0:00:14]}  Qf5+ {[%clk 0:00:09]} 49. Qxf5 {[%clk 0:00:12]}  Rxf5 {[%clk 0:00:10]} 50. a5 {[%clk 0:00:13]}  Rf7 {[%clk 0:00:10]} 51. a6 {[%clk 0:00:13]}  Ra7 {[%clk 0:00:10]} 52. Kd3 {[%clk 0:00:14]}  Ne5+ {[%clk 0:00:10]} 53. Kd4 {[%clk 0:00:14]}  Nxf3+ {[%clk 0:00:09]} 54. Kxd5 {[%clk 0:00:15]}  Nd2 {[%clk 0:00:09]} 55. Kc5 {[%clk 0:00:12]}  f3 {[%clk 0:00:08]} 56. Kb6 {[%clk 0:00:12]}  Re7 {[%clk 0:00:08]} 57. a7 {[%clk 0:00:13]}  Re8 {[%clk 0:00:07]} 58. Kb7 {[%clk 0:00:12]}  f2 {[%clk 0:00:07]} 59. a8=Q {[%clk 0:00:12]}  Rxa8 {[%clk 0:00:07]} 60. Kxa8 {[%clk 0:00:13]}  f1=Q {[%clk 0:00:06]} 61. Bxf1 {[%clk 0:00:14]}  Nxf1 {[%clk 0:00:07]} 62. c4 {[%clk 0:00:14]}  Ne3 {[%clk 0:00:07]} 63. c5 {[%clk 0:00:15]}  Nd5 {[%clk 0:00:07]} 64. c6 {[%clk 0:00:16]}  Kf7 {[%clk 0:00:07]} 65. Kb7 {[%clk 0:00:16]}  Ke7 {[%clk 0:00:08]} 66. c7 {[%clk 0:00:17]}  Nxc7 {[%clk 0:00:07]} 1/2-1/2


[Site "https://www.chess.com"]

[Event "Titled Tuesday Blitz November 22 Early 2022"]
[White "Tanenbaum, Zachary"]
[Black "Alekseenko, Kirill"]
[WhiteFideId "2060850"]
[BlackFideId "4135539"]
[WhiteElo "2175"]
[BlackElo "2682"]
[Result "0-1"]
[Round "04"]
[TimeControl "180+1"]
[Date "2022.11.22"]
[WhiteClock "0:00:01"]
[BlackClock "0:00:16"]

1. e4 {[%clk 0:03:00]}  e5 {[%clk 0:02:59]} 2. Nf3 {[%clk 0:03:00]}  Nc6 {[%clk 0:03:00]} 3. Bc4 {[%clk 0:03:01]}  Nf6 {[%clk 0:02:57]} 4. d3 {[%clk 0:03:01]}  Bc5 {[%clk 0:02:57]} 5. c3 {[%clk 0:03:01]}  d6 {[%clk 0:02:57]} 6. Nbd2 {[%clk 0:03:00]}  Bb6 {[%clk 0:02:54]} 7. a4 {[%clk 0:02:59]}  O-O {[%clk 0:02:49]} 8. Nf1 {[%clk 0:02:59]}  d5 {[%clk 0:02:28]} 9. exd5 {[%clk 0:02:59]}  Nxd5 {[%clk 0:02:29]} 10. Ng3 {[%clk 0:02:59]}  a5 {[%clk 0:02:19]} 11. O-O {[%clk 0:02:58]}  Kh8 {[%clk 0:02:16]} 12. Re1 {[%clk 0:02:52]}  f6 {[%clk 0:02:16]} 13. Bd2 {[%clk 0:02:42]}  Be6 {[%clk 0:02:12]} 14. d4 {[%clk 0:02:39]}  Bg8 {[%clk 0:02:12]} 15. dxe5 {[%clk 0:02:28]}  Nxe5 {[%clk 0:02:11]} 16. Nxe5 {[%clk 0:02:27]}  fxe5 {[%clk 0:02:12]} 17. Ne4 {[%clk 0:02:27]}  Nxc3 {[%clk 0:01:59]} 18. Bxc3 {[%clk 0:02:27]}  Bxc4 {[%clk 0:01:58]} 19. Bxe5 {[%clk 0:02:26]}  Qe7 {[%clk 0:01:48]} 20. Qh5 {[%clk 0:02:03]}  Qf7 {[%clk 0:01:37]} 21. Qh4 {[%clk 0:01:58]}  Rae8 {[%clk 0:01:34]} 22. Bg3 {[%clk 0:01:29]}  Qe7 {[%clk 0:01:34]} 23. Qxe7 {[%clk 0:01:12]}  Rxe7 {[%clk 0:01:35]} 24. Nd2 {[%clk 0:01:12]}  Rxe1+ {[%clk 0:01:32]} 25. Rxe1 {[%clk 0:01:13]}  Bd5 {[%clk 0:01:29]} 26. Re7 {[%clk 0:01:11]}  h6 {[%clk 0:01:29]} 27. Kf1 {[%clk 0:01:07]}  Rf7 {[%clk 0:01:25]} 28. Rxf7 {[%clk 0:01:01]}  Bxf7 {[%clk 0:01:26]} 29. Ke2 {[%clk 0:01:00]}  c6 {[%clk 0:01:26]} 30. Kd3 {[%clk 0:00:58]}  Bd5 {[%clk 0:01:20]} 31. f3 {[%clk 0:00:57]}  Kg8 {[%clk 0:01:15]} 32. Nc4 {[%clk 0:00:57]}  Bd8 {[%clk 0:01:15]} 33. Nd6 {[%clk 0:00:46]}  b6 {[%clk 0:01:14]} 34. Nb7 {[%clk 0:00:43]}  Bf6 {[%clk 0:01:10]} 35. Bc7 {[%clk 0:00:40]}  b5 {[%clk 0:01:00]} 36. axb5 {[%clk 0:00:36]}  cxb5 {[%clk 0:01:01]} 37. Nxa5 {[%clk 0:00:36]}  Bxb2 {[%clk 0:01:01]} 38. Bd6 {[%clk 0:00:35]}  Kf7 {[%clk 0:00:58]} 39. Bb4 {[%clk 0:00:33]}  g5 {[%clk 0:00:50]} 40. Kc2 {[%clk 0:00:32]}  Be5 {[%clk 0:00:48]} 41. h3 {[%clk 0:00:30]}  Kg6 {[%clk 0:00:45]} 42. Nb3 {[%clk 0:00:30]}  Kf5 {[%clk 0:00:42]} 43. Nc5 {[%clk 0:00:27]}  Bd4 {[%clk 0:00:40]} 44. Nd3 {[%clk 0:00:26]}  Bc4 {[%clk 0:00:40]} 45. Bd2 {[%clk 0:00:22]}  Bb6 {[%clk 0:00:37]} 46. Nb4 {[%clk 0:00:19]}  Ke6 {[%clk 0:00:34]} 47. Nd3 {[%clk 0:00:16]}  Bd4 {[%clk 0:00:35]} 48. Nb4 {[%clk 0:00:15]}  Bf6 {[%clk 0:00:34]} 49. Nd3 {[%clk 0:00:15]}  Kd5 {[%clk 0:00:35]} 50. Nb4+ {[%clk 0:00:14]}  Kc5 {[%clk 0:00:32]} 51. Nd3+ {[%clk 0:00:14]}  Kd6 {[%clk 0:00:24]} 52. Nb4 {[%clk 0:00:13]}  Bf1 {[%clk 0:00:24]} 53. g3 {[%clk 0:00:11]}  Bxh3 {[%clk 0:00:24]} 54. Nd3 {[%clk 0:00:10]}  Bg2 {[%clk 0:00:21]} 55. f4 {[%clk 0:00:05]}  Be4 {[%clk 0:00:20]} 56. fxg5 {[%clk 0:00:04]}  hxg5 {[%clk 0:00:20]} 57. Be3 {[%clk 0:00:05]}  b4 {[%clk 0:00:19]} 58. Kd2 {[%clk 0:00:05]}  b3 {[%clk 0:00:18]} 59. Bf2 {[%clk 0:00:03]}  b2 {[%clk 0:00:16]} 60. Nxb2 {[%clk 0:00:03]}  Bxb2 {[%clk 0:00:17]} 61. Be3 {[%clk 0:00:03]}  Bf6 {[%clk 0:00:17]} 62. Ke2 {[%clk 0:00:03]}  Ke6 {[%clk 0:00:17]} 63. Kf2 {[%clk 0:00:04]}  Kf5 {[%clk 0:00:17]} 64. Bb6 {[%clk 0:00:04]}  Kg4 {[%clk 0:00:17]} 65. Bc7 {[%clk 0:00:03]}  Bd4+ {[%clk 0:00:18]} 66. Ke2 {[%clk 0:00:03]}  Bc5 {[%clk 0:00:17]} 67. Bb8 {[%clk 0:00:03]}  Bc6 {[%clk 0:00:16]} 68. Bc7 {[%clk 0:00:03]}  Bb5+ {[%clk 0:00:16]} 69. Ke1 {[%clk 0:00:02]}  Kf3 {[%clk 0:00:16]} 70. Bb8 {[%clk 0:00:02]}  Bf2+ {[%clk 0:00:15]} 71. Kd2 {[%clk 0:00:02]}  Bxg3 {[%clk 0:00:16]} 72. Ba7 {[%clk 0:00:01]}  Bf4+ {[%clk 0:00:16]} 0-1


[Site "https://www.chess.com"]

[Event "Titled Tuesday Blitz November 22 Early 2022"]
[White "Tang, Andrew"]
[Black "Fedoseev, Vladimir"]
[WhiteFideId "2059630"]
[BlackFideId "24130737"]
[WhiteElo "2581"]
[BlackElo "2726"]
[Result "1-0"]
[Round "04"]
[TimeControl "180+1"]
[Date "2022.11.22"]
[WhiteClock "0:00:06"]
[BlackClock "0:00:02"]

1. d4 {[%clk 0:03:00]}  d5 {[%clk 0:02:58]} 2. Bf4 {[%clk 0:02:59]}  c5 {[%clk 0:02:58]} 3. e3 {[%clk 0:02:59]}  cxd4 {[%clk 0:02:58]} 4. exd4 {[%clk 0:03:00]}  Nc6 {[%clk 0:02:58]} 5. Nf3 {[%clk 0:03:01]}  Bg4 {[%clk 0:02:57]} 6. c3 {[%clk 0:03:01]}  Bxf3 {[%clk 0:02:50]} 7. Qxf3 {[%clk 0:02:59]}  e6 {[%clk 0:02:50]} 8. Nd2 {[%clk 0:02:51]}  Bd6 {[%clk 0:02:49]} 9. Bd3 {[%clk 0:02:50]}  Bxf4 {[%clk 0:02:45]} 10. Qxf4 {[%clk 0:02:50]}  Qf6 {[%clk 0:02:46]} 11. Qg4 {[%clk 0:01:40]}  h5 {[%clk 0:02:42]} 12. Qe2 {[%clk 0:01:40]}  Qh6 {[%clk 0:02:36]} 13. O-O-O {[%clk 0:01:23]}  Nf6 {[%clk 0:02:23]} 14. Kb1 {[%clk 0:01:23]}  a6 {[%clk 0:02:18]} 15. Nf3 {[%clk 0:01:14]}  Nd7 {[%clk 0:02:12]} 16. h4 {[%clk 0:01:00]}  Qf6 {[%clk 0:01:41]} 17. Ng5 {[%clk 0:00:45]}  Qe7 {[%clk 0:01:40]} 18. Rhe1 {[%clk 0:00:37]}  O-O-O {[%clk 0:01:33]} 19. f4 {[%clk 0:00:22]}  g6 {[%clk 0:01:27]} 20. f5 {[%clk 0:00:15]}  gxf5 {[%clk 0:01:27]} 21. Bxf5 {[%clk 0:00:15]}  Rde8 {[%clk 0:01:27]} 22. Bd3 {[%clk 0:00:15]}  Nd8 {[%clk 0:01:23]} 23. c4 {[%clk 0:00:15]}  dxc4 {[%clk 0:01:03]} 24. Bxc4 {[%clk 0:00:15]}  Qd6 {[%clk 0:01:03]} 25. Qf3 {[%clk 0:00:14]}  Nb6 {[%clk 0:00:48]} 26. Ne4 {[%clk 0:00:08]}  Qb4 {[%clk 0:00:38]} 27. Bb3 {[%clk 0:00:07]}  Kb8 {[%clk 0:00:38]} 28. a3 {[%clk 0:00:05]}  Qe7 {[%clk 0:00:32]} 29. Qg3+ {[%clk 0:00:04]}  Ka7 {[%clk 0:00:29]} 30. d5 {[%clk 0:00:04]}  Rhg8 {[%clk 0:00:15]} 31. Qf2 {[%clk 0:00:04]}  exd5 {[%clk 0:00:12]} 32. Nc3 {[%clk 0:00:05]}  Qd6 {[%clk 0:00:10]} 33. Rxe8 {[%clk 0:00:03]}  Rxe8 {[%clk 0:00:09]} 34. Rxd5 {[%clk 0:00:04]}  Qc7 {[%clk 0:00:08]} 35. Rxh5 {[%clk 0:00:04]}  Kb8 {[%clk 0:00:07]} 36. Rf5 {[%clk 0:00:03]}  Nc8 {[%clk 0:00:06]} 37. h5 {[%clk 0:00:04]}  Nd6 {[%clk 0:00:06]} 38. Rf3 {[%clk 0:00:04]}  Qe7 {[%clk 0:00:04]} 39. h6 {[%clk 0:00:05]}  Qg5 {[%clk 0:00:03]} 40. h7 {[%clk 0:00:04]}  Qg6+ {[%clk 0:00:02]} 41. Bc2 {[%clk 0:00:05]}  Qh6 {[%clk 0:00:02]} 42. Rh3 {[%clk 0:00:05]}  Qg7 {[%clk 0:00:02]} 43. Qf4 {[%clk 0:00:06]} 1-0


[Site "https://www.chess.com"]

[Event "Titled Tuesday Blitz November 22 Early 2022"]
[White "Tologon tegin, Semetei"]
[Black "Rose, Felix"]
[WhiteFideId "13800574"]
[BlackFideId "5105722"]
[WhiteElo "2282"]
[BlackElo "2039"]
[Result "1-0"]
[Round "04"]
[TimeControl "180+1"]
[Date "2022.11.23"]
[WhiteClock "0:00:14"]
[BlackClock "0:00:07"]

1. e4 {[%clk 0:02:52]}  c5 {[%clk 0:02:59]} 2. Nf3 {[%clk 0:02:52]}  d6 {[%clk 0:02:59]} 3. d4 {[%clk 0:02:53]}  cxd4 {[%clk 0:03:00]} 4. Nxd4 {[%clk 0:02:53]}  Nf6 {[%clk 0:03:00]} 5. Nc3 {[%clk 0:02:54]}  a6 {[%clk 0:03:00]} 6. a3 {[%clk 0:02:54]}  e5 {[%clk 0:02:59]} 7. Nf3 {[%clk 0:02:54]}  Be7 {[%clk 0:02:59]} 8. Bg5 {[%clk 0:02:54]}  Be6 {[%clk 0:02:57]} 9. Bxf6 {[%clk 0:02:53]}  Bxf6 {[%clk 0:02:58]} 10. Nd5 {[%clk 0:02:54]}  Nd7 {[%clk 0:02:57]} 11. Bc4 {[%clk 0:02:54]}  O-O {[%clk 0:02:55]} 12. c3 {[%clk 0:02:51]}  Rc8 {[%clk 0:02:54]} 13. Ba2 {[%clk 0:02:51]}  b5 {[%clk 0:02:21]} 14. O-O {[%clk 0:02:45]}  Bxd5 {[%clk 0:02:10]} 15. Bxd5 {[%clk 0:02:39]}  Nb6 {[%clk 0:02:10]} 16. Qd3 {[%clk 0:02:37]}  Qc7 {[%clk 0:02:02]} 17. Rfd1 {[%clk 0:02:36]}  Be7 {[%clk 0:02:02]} 18. Nd2 {[%clk 0:02:29]}  Nxd5 {[%clk 0:01:46]} 19. Qxd5 {[%clk 0:02:29]}  Qc6 {[%clk 0:01:44]} 20. Nf1 {[%clk 0:02:22]}  Qxd5 {[%clk 0:01:42]} 21. Rxd5 {[%clk 0:02:22]}  f5 {[%clk 0:01:42]} 22. exf5 {[%clk 0:02:21]}  Rxf5 {[%clk 0:01:42]} 23. a4 {[%clk 0:02:20]}  Rb8 {[%clk 0:01:38]} 24. Ne3 {[%clk 0:02:13]}  Rf4 {[%clk 0:01:36]} 25. axb5 {[%clk 0:02:13]}  axb5 {[%clk 0:01:37]} 26. Ra7 {[%clk 0:02:12]}  Bf8 {[%clk 0:01:33]} 27. Ra5 {[%clk 0:02:06]}  b4 {[%clk 0:01:32]} 28. c4 {[%clk 0:02:06]}  b3 {[%clk 0:01:28]} 29. Rab5 {[%clk 0:02:02]}  Rxb5 {[%clk 0:01:15]} 30. Rxb5 {[%clk 0:02:01]}  Rd4 {[%clk 0:01:15]} 31. Rxb3 {[%clk 0:02:01]}  g6 {[%clk 0:01:03]} 32. Rb8 {[%clk 0:01:58]}  Kf7 {[%clk 0:01:03]} 33. Rb7+ {[%clk 0:01:58]}  Ke6 {[%clk 0:01:03]} 34. Rxh7 {[%clk 0:01:55]}  Rd2 {[%clk 0:01:03]} 35. Rb7 {[%clk 0:01:42]}  Bh6 {[%clk 0:01:02]} 36. Nf1 {[%clk 0:01:42]}  Rc2 {[%clk 0:01:01]} 37. b3 {[%clk 0:01:42]}  Bc1 {[%clk 0:00:53]} 38. g3 {[%clk 0:01:32]}  Bb2 {[%clk 0:00:50]} 39. Ne3 {[%clk 0:01:31]}  Rd2 {[%clk 0:00:49]} 40. Kg2 {[%clk 0:01:10]}  Bd4 {[%clk 0:00:48]} 41. Kf3 {[%clk 0:01:10]}  g5 {[%clk 0:00:36]} 42. h4 {[%clk 0:01:01]}  gxh4 {[%clk 0:00:25]} 43. gxh4 {[%clk 0:01:02]}  e4+ {[%clk 0:00:21]} 44. Kxe4 {[%clk 0:01:00]}  Bf6 {[%clk 0:00:22]} 45. f4 {[%clk 0:00:46]}  Bxh4 {[%clk 0:00:20]} 46. f5+ {[%clk 0:00:44]}  Kf6 {[%clk 0:00:19]} 47. Nd5+ {[%clk 0:00:44]}  Kg5 {[%clk 0:00:19]} 48. f6 {[%clk 0:00:41]}  Re2+ {[%clk 0:00:13]} 49. Kd3 {[%clk 0:00:41]}  Rf2 {[%clk 0:00:11]} 50. Rd7 {[%clk 0:00:25]}  Bg3 {[%clk 0:00:09]} 51. b4 {[%clk 0:00:19]}  Be5 {[%clk 0:00:08]} 52. b5 {[%clk 0:00:18]}  Kg6 {[%clk 0:00:08]} 53. b6 {[%clk 0:00:16]}  Bxf6 {[%clk 0:00:08]} 54. Nxf6 {[%clk 0:00:15]}  Rxf6 {[%clk 0:00:07]} 55. b7 {[%clk 0:00:15]}  Rf8 {[%clk 0:00:08]} 56. Rxd6+ {[%clk 0:00:15]}  Kf5 {[%clk 0:00:08]} 57. Rb6 {[%clk 0:00:14]}  Rb8 {[%clk 0:00:08]} 58. Kd4 {[%clk 0:00:14]}  Rd8+ {[%clk 0:00:06]} 59. Kc5 {[%clk 0:00:14]}  Ke5 {[%clk 0:00:06]} 60. Kc6 {[%clk 0:00:14]}  Kd4 {[%clk 0:00:06]} 61. Kc7 {[%clk 0:00:14]}  Rh8 {[%clk 0:00:07]} 62. b8=Q {[%clk 0:00:15]}  Rxb8 {[%clk 0:00:06]} 63. Kxb8 {[%clk 0:00:14]}  Kc5 {[%clk 0:00:07]} 64. Kc7 {[%clk 0:00:14]}  Kxc4 {[%clk 0:00:07]} 65. Kc6 {[%clk 0:00:15]}  Kc3 {[%clk 0:00:08]} 66. Rb5 {[%clk 0:00:15]}  Kc4 {[%clk 0:00:08]} 67. Kb6 {[%clk 0:00:15]}  Kc3 {[%clk 0:00:08]} 68. Kc5 {[%clk 0:00:15]}  Kc2 {[%clk 0:00:08]} 69. Kc4 {[%clk 0:00:15]}  Kd2 {[%clk 0:00:08]} 70. Re5 {[%clk 0:00:14]}  Kc2 {[%clk 0:00:07]} 71. Re2+ {[%clk 0:00:14]}  Kd1 {[%clk 0:00:08]} 72. Kd3 {[%clk 0:00:14]}  Kc1 {[%clk 0:00:08]} 73. Kc3 {[%clk 0:00:14]}  Kd1 {[%clk 0:00:08]} 74. Re3 {[%clk 0:00:14]}  Kc1 {[%clk 0:00:07]} 75. Re1# {[%clk 0:00:14]} 1-0


[Site "https://www.chess.com"]

[Event "Titled Tuesday Blitz November 22 Early 2022"]
[White "Unat, Can Haktan"]
[Black "Begmuratov, Khumoyun"]
[WhiteFideId "6398073"]
[BlackFideId "14210207"]
[WhiteElo "2146"]
[BlackElo "2267"]
[Result "0-1"]
[Round "04"]
[TimeControl "180+1"]
[Date "2022.11.23"]
[WhiteClock "0:00:08"]
[BlackClock "0:00:11"]

1. e4 {[%clk 0:03:00]}  e5 {[%clk 0:02:59]} 2. Nf3 {[%clk 0:02:58]}  Nc6 {[%clk 0:02:59]} 3. Bb5 {[%clk 0:02:57]}  Nf6 {[%clk 0:02:58]} 4. O-O {[%clk 0:02:55]}  Nxe4 {[%clk 0:02:58]} 5. d4 {[%clk 0:02:52]}  Nd6 {[%clk 0:02:58]} 6. a4 {[%clk 0:02:51]}  Nxb5 {[%clk 0:02:56]} 7. axb5 {[%clk 0:02:38]}  Nxd4 {[%clk 0:02:55]} 8. Nxd4 {[%clk 0:02:11]}  exd4 {[%clk 0:02:55]} 9. Re1+ {[%clk 0:02:12]}  Be7 {[%clk 0:02:54]} 10. Bg5 {[%clk 0:02:11]}  f6 {[%clk 0:02:54]} 11. Qxd4 {[%clk 0:02:10]}  O-O {[%clk 0:02:37]} 12. Bf4 {[%clk 0:02:07]}  d5 {[%clk 0:02:31]} 13. Rxa7 {[%clk 0:01:57]}  Rxa7 {[%clk 0:02:24]} 14. Qxa7 {[%clk 0:01:58]}  Re8 {[%clk 0:02:16]} 15. Qe3 {[%clk 0:01:50]}  Bd7 {[%clk 0:02:03]} 16. Qc3 {[%clk 0:01:39]}  c5 {[%clk 0:01:44]} 17. bxc6 {[%clk 0:01:31]}  bxc6 {[%clk 0:01:45]} 18. Na3 {[%clk 0:01:23]}  Bf8 {[%clk 0:01:28]} 19. Rd1 {[%clk 0:01:16]}  Bg4 {[%clk 0:00:59]} 20. f3 {[%clk 0:01:11]}  Qb6+ {[%clk 0:00:51]} 21. Kh1 {[%clk 0:01:10]}  Bf5 {[%clk 0:00:50]} 22. h3 {[%clk 0:00:57]}  Re2 {[%clk 0:00:47]} 23. Rf1 {[%clk 0:00:47]}  Bc5 {[%clk 0:00:36]} 24. Nb1 {[%clk 0:00:32]}  Rxc2 {[%clk 0:00:28]} 25. Qe1 {[%clk 0:00:32]}  Kf7 {[%clk 0:00:23]} 26. Nc3 {[%clk 0:00:31]}  Qxb2 {[%clk 0:00:18]} 27. Na4 {[%clk 0:00:32]}  Qb4 {[%clk 0:00:13]} 28. Nxc5 {[%clk 0:00:12]}  Qxf4 {[%clk 0:00:13]} 29. Qa1 {[%clk 0:00:07]}  Bxh3 {[%clk 0:00:11]} 30. Qa7+ {[%clk 0:00:07]}  Kg6 {[%clk 0:00:11]} 31. Qxg7+ {[%clk 0:00:07]}  Kxg7 {[%clk 0:00:10]} 32. Ne6+ {[%clk 0:00:08]}  Bxe6 {[%clk 0:00:11]} 0-1


[Site "https://www.chess.com"]

[Event "Titled Tuesday Blitz November 22 Early 2022"]
[White "Urquhart, Ed"]
[Black "Osmak, Yuliia"]
[WhiteFideId "2603748"]
[BlackFideId "14101602"]
[WhiteElo "2184"]
[BlackElo "2328"]
[Result "0-1"]
[Round "04"]
[TimeControl "180+1"]
[Date "2022.11.23"]
[WhiteClock "0:00:12"]
[BlackClock "0:00:18"]

1. e4 {[%clk 0:03:00]}  c5 {[%clk 0:02:59]} 2. Nc3 {[%clk 0:03:00]}  d6 {[%clk 0:02:58]} 3. f4 {[%clk 0:03:00]}  g6 {[%clk 0:02:54]} 4. Nf3 {[%clk 0:02:52]}  Bg7 {[%clk 0:02:55]} 5. Bc4 {[%clk 0:02:51]}  Nc6 {[%clk 0:02:54]} 6. d3 {[%clk 0:02:51]}  e6 {[%clk 0:02:50]} 7. O-O {[%clk 0:02:51]}  Nge7 {[%clk 0:02:49]} 8. Qe1 {[%clk 0:02:51]}  Nd4 {[%clk 0:02:34]} 9. Nxd4 {[%clk 0:02:51]}  cxd4 {[%clk 0:02:31]} 10. Nd1 {[%clk 0:02:50]}  d5 {[%clk 0:02:30]} 11. Bb3 {[%clk 0:02:46]}  O-O {[%clk 0:02:29]} 12. Nf2 {[%clk 0:02:44]}  dxe4 {[%clk 0:02:22]} 13. dxe4 {[%clk 0:02:42]}  b5 {[%clk 0:02:21]} 14. Nd3 {[%clk 0:02:39]}  Bb7 {[%clk 0:02:19]} 15. Bd2 {[%clk 0:02:36]}  a5 {[%clk 0:02:18]} 16. a4 {[%clk 0:02:34]}  b4 {[%clk 0:02:17]} 17. Qe2 {[%clk 0:02:14]}  Rc8 {[%clk 0:02:17]} 18. Rae1 {[%clk 0:02:14]}  Qb6 {[%clk 0:02:12]} 19. Kh1 {[%clk 0:02:12]}  Ba6 {[%clk 0:02:05]} 20. Qf3 {[%clk 0:02:08]}  Bc4 {[%clk 0:02:03]} 21. Rc1 {[%clk 0:01:50]}  Rc7 {[%clk 0:01:59]} 22. Bxc4 {[%clk 0:01:48]}  Rxc4 {[%clk 0:01:58]} 23. b3 {[%clk 0:01:49]}  Rc7 {[%clk 0:01:57]} 24. Nb2 {[%clk 0:01:48]}  Rfc8 {[%clk 0:01:52]} 25. Nc4 {[%clk 0:01:49]}  Qa6 {[%clk 0:01:47]} 26. h3 {[%clk 0:01:46]}  Rd8 {[%clk 0:01:28]} 27. Qg3 {[%clk 0:01:39]}  f5 {[%clk 0:01:15]} 28. e5 {[%clk 0:01:35]}  Nd5 {[%clk 0:01:04]} 29. h4 {[%clk 0:01:21]}  Nb6 {[%clk 0:00:57]} 30. Nd6 {[%clk 0:01:19]}  Bf8 {[%clk 0:00:54]} 31. Nb5 {[%clk 0:01:18]}  Rcd7 {[%clk 0:00:49]} 32. Rf3 {[%clk 0:01:14]}  Qb7 {[%clk 0:00:42]} 33. Rd3 {[%clk 0:01:14]}  Bc5 {[%clk 0:00:34]} 34. Be1 {[%clk 0:01:11]}  Qe4 {[%clk 0:00:24]} 35. Bf2 {[%clk 0:01:09]}  Nd5 {[%clk 0:00:23]} 36. Re1 {[%clk 0:00:59]}  Qxf4 {[%clk 0:00:23]} 37. Bxd4 {[%clk 0:00:44]}  Qxg3 {[%clk 0:00:21]} 38. Rxg3 {[%clk 0:00:44]}  Bxd4 {[%clk 0:00:20]} 39. Nxd4 {[%clk 0:00:45]}  Nf4 {[%clk 0:00:20]} 40. Nb5 {[%clk 0:00:40]}  Rd2 {[%clk 0:00:18]} 41. Rf1 {[%clk 0:00:32]}  Ne2 {[%clk 0:00:18]} 42. Re3 {[%clk 0:00:27]}  Nd4 {[%clk 0:00:18]} 43. Nd6 {[%clk 0:00:16]}  Nxc2 {[%clk 0:00:17]} 44. Rg3 {[%clk 0:00:13]}  Nd4 {[%clk 0:00:17]} 45. h5 {[%clk 0:00:13]}  Kg7 {[%clk 0:00:17]} 46. hxg6 {[%clk 0:00:13]}  hxg6 {[%clk 0:00:18]} 47. Rf4 {[%clk 0:00:12]}  Rh8+ {[%clk 0:00:18]} 48. Kg1 {[%clk 0:00:12]}  Ne2+ {[%clk 0:00:18]} 0-1


[Site "https://www.chess.com"]